bitfinex-derivatives/quotes_BTCF0:USTF0_20250325
["timestamp","ask_amount","ask_price","bid_price","bid_amount"]
[1742875623084,0.00460001,86547.0,86546.0,0.2251631]
[1742875623490,0.00460001,86547.0,86546.0,0.72276369]
[1742875623786,0.12014181,86547.0,86546.0,0.72276369]
[1742875623972,0.00460001,86547.0,86546.0,0.72276369]
[1742875624981,0.12014181,86547.0,86546.0,0.60722059]
[1742875625387,0.22564181,86547.0,86546.0,0.84604369]
[1742875625594,0.22564181,86547.0,86546.0,0.84596369]
[1742875626092,0.11010001,86547.0,86546.0,0.84596369]
[1742875626778,0.10910001,86547.0,86546.0,0.85096369]
[1742875626973,0.10710001,86547.0,86546.0,0.85096369]
[1742875627288,0.00160001,86547.0,86546.0,0.85496369]
[1742875627483,0.11140001,86547.0,86546.0,0.85496369]
[1742875627690,0.11140001,86547.0,86546.0,0.96326369]
[1742875628574,0.22594181,86547.0,86546.0,0.96326369]
[1742875629585,0.11040001,86547.0,86546.0,0.96226369]
[1742875629797,0.22594181,86547.0,86546.0,0.84672059]
[1742875629985,0.22594181,86547.0,86546.0,0.4616631]
[1742875630186,0.22594181,86547.0,86546.0,0.4606631]
[1742875630490,0.11040001,86547.0,86546.0,0.4646631]
[1742875630690,0.11040001,86547.0,86546.0,0.3413831]
[1742875632685,0.11040001,86547.0,86546.0,0.8249031]
[1742875632686,0.00060001,86547.0,86546.0,0.8249031]
[1742875632893,0.00060001,86547.0,86546.0,0.83988579]
[1742875633481,0.00060001,86547.0,86546.0,0.83688579]
[1742875633682,0.00060001,86547.0,86546.0,0.83588579]
[1742875633882,0.00060001,86547.0,86546.0,0.83988579]
[1742875634494,0.41048,86568.0,86561.0,0.1155231]
[1742875634495,0.1023,86562.0,86561.0,0.1155231]
[1742875634693,0.10290001,86562.0,86561.0,0.25498579]
[1742875635493,0.10290001,86562.0,86561.0,0.25538394]
[1742875636497,0.00060001,86562.0,86561.0,0.25538394]
[1742875636697,0.2207164,86566.0,86565.0,0.1155178]
[1742875636988,0.22175641,86566.0,86565.0,0.13193864]
[1742875637197,0.10624001,86566.0,86565.0,0.13193864]
[1742875638283,0.10624001,86566.0,86565.0,0.1165578]
[1742875638488,0.10624001,86566.0,86565.0,0.13293235]
[1742875639396,8e-05,86567.0,86566.0,0.1155164]
[1742875639590,0.0004,86568.0,86567.0,0.1155151]
[1742875639894,0.1159938,86568.0,86567.0,0.13196965]
[1742875640092,0.11703381,86568.0,86567.0,0.01645455]
[1742875640288,0.11703381,86568.0,86567.0,0.1165951]
[1742875640483,0.00152001,86568.0,86567.0,0.1165951]
[1742875640696,0.21392001,86568.0,86567.0,0.00108]
[1742875640885,0.32943381,86568.0,86567.0,0.12517406]
[1742875641083,0.32943381,86568.0,86567.0,0.00108]
[1742875643796,0.32935381,86568.0,86567.0,0.00108]
[1742875644097,0.33599381,86568.0,86567.0,0.00108]
[1742875644290,0.33599381,86568.0,86567.0,0.0014]
[1742875644814,0.34721783,86568.0,86567.0,0.0014]
[1742875644985,0.34721783,86568.0,86564.0,0.20744628]
[1742875644986,0.1155178,86565.0,86564.0,0.20744628]
[1742875645190,0.2414378,86565.0,86564.0,0.20824628]
[1742875645696,0.6022378,86565.0,86564.0,0.20824628]
[1742875646203,0.4771178,86565.0,86564.0,0.0018]
[1742875646493,0.4771178,86565.0,86564.0,0.001]
[1742875647393,0.6895178,86565.0,86564.0,0.001]
[1742875651896,0.8179978,86565.0,86564.0,0.001]
[1742875653795,0.4571978,86565.0,86564.0,0.001]
[1742875653994,1.1787978,86565.0,86564.0,0.001]
[1742875655796,1.1787978,86565.0,86564.0,0.1102]
[1742875656507,1.1787978,86565.0,86564.0,0.001]
[1742875657203,1.0503178,86565.0,86564.0,0.001]
[1742875657598,1.0503178,86565.0,86564.0,0.2189]
[1742875657798,1.0503178,86565.0,86564.0,0.22994428]
[1742875658210,1.0503178,86565.0,86564.0,0.23066428]
[1742875658407,0.3616,86565.0,86564.0,0.34546338]
[1742875658603,0.0008,86565.0,86564.0,0.34618338]
[1742875659003,0.007125,86568.0,86567.0,0.1155151]
[1742875659205,0.008125,86568.0,86567.0,0.1165151]
[1742875659704,0.1236388,86568.0,86567.0,0.1165151]
[1742875660103,0.008125,86568.0,86567.0,0.1165151]
[1742875660511,0.1236388,86568.0,86567.0,0.1165151]
[1742875660814,0.1236388,86568.0,86567.0,0.12509816]
[1742875661408,0.008125,86568.0,86567.0,0.12509816]
[1742875663408,0.007125,86568.0,86567.0,0.12509816]
[1742875665704,0.007125,86568.0,86567.0,0.25225816]
[1742875667323,0.007125,86568.0,86567.0,0.26225816]
[1742875668308,0.0004,86584.0,86583.0,0.1154938]
[1742875668521,0.00136001,86584.0,86583.0,0.1164538]
[1742875668714,0.0004,86584.0,86583.0,0.1164538]
[1742875669221,0.0004,86584.0,86583.0,0.3357538]
[1742875670018,0.1228924,86584.0,86583.0,0.22026]
[1742875670210,0.12385241,86584.0,86583.0,0.22026]
[1742875670410,0.00932002,86584.0,86583.0,0.3357538]
[1742875670621,0.11186001,86584.0,86583.0,0.3357538]
[1742875670812,0.0064,86584.0,86583.0,0.3357538]
[1742875677510,0.0064,86584.0,86583.0,0.11276]
[1742875677718,0.2319924,86584.0,86583.0,0.1118]
[1742875677918,0.3367924,86584.0,86583.0,0.11276]
[1742875678319,0.3367924,86584.0,86583.0,0.00096]
[1742875678619,0.1154991,86579.0,86578.0,0.1019]
[1742875678819,0.11645911,86579.0,86578.0,0.10286]
[1742875679329,0.11645911,86579.0,86578.0,0.00096]
[1742875679531,0.33045911,86579.0,86578.0,0.00096]
[1742875680035,0.33245911,86579.0,86578.0,0.00096]
[1742875680233,0.33445911,86579.0,86578.0,0.00096]
[1742875682130,0.33445911,86579.0,86578.0,0.1164604]
[1742875684639,0.33445911,86579.0,86578.0,0.00096]
[1742875686442,0.21896001,86579.0,86578.0,0.1164604]
[1742875686633,0.33445911,86579.0,86578.0,0.2192604]
[1742875686824,0.21896001,86579.0,86578.0,0.2192604]
[1742875687020,0.11416001,86579.0,86578.0,0.2192604]
[1742875689026,0.22965911,86579.0,86578.0,0.2192604]
[1742875689843,0.33705911,86579.0,86578.0,0.2192604]
[1742875690835,0.33705911,86579.0,86578.0,0.23424111]
[1742875691230,0.33705911,86579.0,86578.0,0.24989813]
[1742875691534,0.33705911,86579.0,86578.0,0.23424111]
[1742875691943,0.22156001,86579.0,86578.0,0.23424111]
[1742875692137,0.11416001,86579.0,86578.0,0.23424111]
[1742875692839,0.22965911,86579.0,86578.0,0.23424111]
[1742875693535,0.11416001,86579.0,86578.0,0.23424111]
[1742875693733,0.00496001,86579.0,86578.0,0.23424111]
[1742875693934,0.004,86579.0,86578.0,0.27424111]
[1742875695349,0.00048,86584.0,86583.0,0.1154938]
[1742875695551,0.00136001,86584.0,86583.0,0.4772538]
[1742875695736,0.0004,86584.0,86583.0,0.63433642]
[1742875696146,0.0004,86584.0,86583.0,0.85483642]
[1742875696339,0.0004,86584.0,86583.0,0.87483642]
[1742875696648,0.0034,86584.0,86583.0,0.87491892]
[1742875696839,0.0064,86584.0,86583.0,0.87491892]
[1742875697749,8e-05,86587.0,86586.0,0.1154898]
[1742875697956,8e-05,86587.0,86586.0,0.13195421]
[1742875698353,8e-05,86587.0,86586.0,0.15711916]
[1742875698553,0.1065,86598.0,86597.0,0.1154751]
[1742875698753,0.10746001,86598.0,86597.0,0.1164751]
[1742875699152,0.10746001,86598.0,86597.0,0.13145581]
[1742875699455,0.10754001,86598.0,86597.0,0.34255581]
[1742875699853,0.21024001,86598.0,86597.0,0.34255581]
[1742875700044,0.21024001,86598.0,86597.0,0.35371089]
[1742875700450,0.21624001,86598.0,86597.0,0.35371089]
[1742875701160,0.00704001,86598.0,86597.0,0.35371089]
[1742875701355,0.00608,86598.0,86597.0,0.36946189]
[1742875701559,0.006,86598.0,86597.0,0.36946189]
[1742875701751,0.006,86598.0,86597.0,0.35371089]
[1742875701953,0.00704001,86598.0,86597.0,0.35371089]
[1742875702860,0.00704001,86598.0,86597.0,0.12963579]
[1742875703065,0.00704001,86598.0,86597.0,0.24511089]
[1742875704062,0.12251371,86598.0,86597.0,0.02713579]
[1742875704253,0.12251371,86598.0,86597.0,0.02613579]
[1742875704961,0.12251371,86598.0,86597.0,0.12663018]
[1742875705555,0.12251371,86598.0,86597.0,0.12759018]
[1742875706154,0.00704001,86598.0,86597.0,0.1424749]
[1742875706560,0.00704001,86598.0,86597.0,0.2455749]
[1742875707451,0.22234001,86598.0,86597.0,0.2455749]
[1742875709052,0.11594001,86598.0,86597.0,0.2455749]
[1742875709253,0.11594001,86598.0,86597.0,0.3713349]
[1742875709454,0.1149,86598.0,86597.0,0.3713349]
[1742875709654,0.006,86598.0,86597.0,0.4827349]
[1742875711867,0.1063,86598.0,86597.0,0.4827349]
[1742875712263,0.10698,86598.0,86597.0,0.4827349]
[1742875712768,8e-05,86599.0,86598.0,0.1154737]
[1742875713062,0.1004,86600.0,86599.0,0.1154724]
[1742875713263,0.1004,86600.0,86599.0,0.20217254]
[1742875713467,0.05996776,86600.0,86599.0,0.40937254]
[1742875713765,0.05996776,86600.0,86599.0,0.42425726]
[1742875713964,0.01953552,86600.0,86599.0,0.40871712]
[1742875714268,0.01953552,86600.0,86599.0,0.42449692]
[1742875714464,0.01953552,86600.0,86599.0,0.55153692]
[1742875715370,0.01953552,86600.0,86599.0,0.55137692]
[1742875715964,0.01953552,86600.0,86599.0,0.53559712]
[1742875716459,0.01953552,86600.0,86599.0,0.74296093]
[1742875717468,0.01953552,86600.0,86599.0,0.73807621]
[1742875717670,0.01953552,86600.0,86599.0,0.74351621]
[1742875718864,0.01953552,86600.0,86599.0,0.75824059]
[1742875719068,0.01953552,86600.0,86599.0,0.76424059]
[1742875719265,0.01953552,86600.0,86599.0,0.74451621]
[1742875719567,0.01953552,86600.0,86599.0,0.74951621]
[1742875719769,0.01953552,86600.0,86599.0,1.11031621]
[1742875720764,0.01953552,86600.0,86599.0,0.9029524]
[1742875721165,0.01953552,86600.0,86599.0,0.91821521]
[1742875721372,0.01953552,86600.0,86599.0,0.9029524]
[1742875721573,0.01953552,86600.0,86599.0,0.91821521]
[1742875721982,8e-05,86602.0,86601.0,0.1154697]
[1742875722167,8e-05,86602.0,86601.0,1.1315497]
[1742875722669,8e-05,86602.0,86601.0,1.3475497]
[1742875722875,8e-05,86602.0,86601.0,1.36278578]
[1742875723072,0.1006,86608.0,86607.0,0.1154617]
[1742875723377,0.1006,86608.0,86607.0,0.6043817]
[1742875723573,0.1006,86608.0,86607.0,0.61962062]
[1742875723774,0.10180001,86608.0,86607.0,0.61962062]
[1742875723976,0.10180001,86608.0,86607.0,0.83542062]
[1742875724177,0.1006,86608.0,86607.0,0.83542062]
[1742875725178,0.1006,86608.0,86607.0,0.83942062]
[1742875725376,0.1006,86608.0,86607.0,0.84242062]
[1742875725580,0.1006,86608.0,86607.0,0.71546062]
[1742875725783,0.09177196,86608.0,86607.0,0.84202062]
[1742875726083,0.09177196,86608.0,86607.0,0.8267817]
[1742875726678,0.09177196,86608.0,86607.0,0.84152183]
[1742875732477,0.09177196,86608.0,86607.0,0.86152183]
[1742875735582,0.09177196,86608.0,86607.0,0.87706298]
[1742875735789,0.09177196,86608.0,86607.0,0.73496183]
[1742875735985,0.09297197,86608.0,86607.0,0.87566146]
[1742875736288,0.09177196,86608.0,86607.0,0.87566146]
[1742875736488,0.09177196,86608.0,86607.0,0.87566494]
[1742875740385,0.09177196,86608.0,86607.0,0.86092481]
[1742875740591,0.09177196,86608.0,86607.0,0.86068892]
[1742875741488,0.09177196,86608.0,86607.0,0.87545647]
[1742875741890,0.09177196,86608.0,86607.0,0.76585647]
[1742875742095,0.09177196,86608.0,86607.0,0.79041626]
[1742875742978,0.09177196,86608.0,86607.0,0.9583255]
[1742875743192,0.09177196,86608.0,86607.0,0.95828218]
[1742875743691,0.09177196,86608.0,86607.0,0.94221828]
[1742875744081,0.09177196,86608.0,86607.0,0.95748341]
[1742875744281,0.09177196,86608.0,86607.0,0.94221828]
[1742875744881,0.09177196,86608.0,86607.0,0.95747699]
[1742875745082,0.09177196,86608.0,86607.0,0.94221828]
[1742875745889,0.09177196,86608.0,86607.0,0.6106217]
[1742875746198,0.09177196,86608.0,86607.0,0.62376687]
[1742875746394,0.09293196,86608.0,86607.0,0.62376687]
[1742875746592,0.09293196,86608.0,86607.0,0.62380326]
[1742875747884,0.09177196,86608.0,86607.0,0.62380326]
[1742875748081,0.09177196,86608.0,86607.0,0.73080326]
[1742875748698,0.09177196,86608.0,86607.0,0.74569579]
[1742875748992,0.09177196,86608.0,86607.0,0.74596291]
[1742875749192,0.09297197,86608.0,86607.0,0.74596291]
[1742875751583,0.09177196,86608.0,86607.0,0.62184291]
[1742875751786,0.09177196,86608.0,86607.0,0.73059038]
[1742875753482,0.09177196,86608.0,86607.0,0.75549852]
[1742875754188,0.09177196,86608.0,86607.0,0.76549852]
[1742875757085,0.09177196,86608.0,86607.0,0.76557119]
[1742875758390,0.09177196,86608.0,86607.0,0.74064227]
[1742875759107,0.09177196,86608.0,86607.0,0.74027992]
[1742875759286,0.09177196,86608.0,86607.0,0.74027988]
[1742875760996,0.09177196,86608.0,86607.0,0.7250617]
[1742875761197,0.09177196,86608.0,86607.0,0.74033179]
[1742875762804,0.09177196,86608.0,86607.0,0.61669179]
[1742875762996,0.09177196,86608.0,86607.0,0.73933179]
[1742875767604,0.09177196,86608.0,86607.0,0.76424849]
[1742875768614,0.09177196,86608.0,86607.0,0.73933179]
[1742875769304,0.09177196,86608.0,86607.0,0.73966887]
[1742875769707,0.09177196,86608.0,86607.0,0.76465298]
[1742875772397,8e-05,86611.0,86608.0,0.17319]
[1742875772605,0.0004,86616.0,86615.0,0.1154511]
[1742875772905,0.00156,86616.0,86615.0,0.58800238]
[1742875773105,0.0004,86616.0,86615.0,0.58800238]
[1742875773311,0.0004,86616.0,86615.0,0.80380238]
[1742875773502,0.0004,86616.0,86615.0,0.81256822]
[1742875773804,0.0577264,86614.0,86608.0,0.3638]
[1742875774011,0.0577287,86611.0,86609.0,0.1154587]
[1742875774206,0.2314,86610.0,86609.0,0.1154587]
[1742875774508,0.3468577,86610.0,86609.0,0.00084]
[1742875774705,0.2314,86610.0,86608.0,0.3648]
[1742875775208,0.2314,86610.0,86609.0,0.1154591]
[1742875775605,0.2314,86610.0,86609.0,0.1194591]
[1742875777012,0.2314,86610.0,86609.0,0.1224591]
[1742875779509,0.23232,86610.0,86609.0,0.1233791]
[1742875782312,0.23232,86610.0,86609.0,0.1233791]
[1742875783906,0.23232,86610.0,86609.0,0.33106344]
[1742875785410,0.23232,86610.0,86609.0,0.44696344]
[1742875786613,0.23232,86610.0,86609.0,0.2392791]
[1742875789113,0.23232,86610.0,86609.0,0.44696344]
[1742875791714,0.23232,86610.0,86609.0,0.2392791]
[1742875797122,0.1136,86610.0,86609.0,0.2392791]
[1742875797328,8e-05,86611.0,86610.0,0.1154577]
[1742875797622,0.1104,86617.0,86615.0,0.1154511]
[1742875797808,0.00136001,86616.0,86615.0,0.1163311]
[1742875798413,0.00136001,86616.0,86615.0,0.3368311]
[1742875799320,0.11816001,86616.0,86615.0,0.3368311]
[1742875800022,0.11816001,86616.0,86615.0,0.3378311]
[1742875800822,0.11816001,86616.0,86615.0,0.3398311]
[1742875801824,0.00136001,86616.0,86615.0,0.3398311]
[1742875802724,0.11516001,86616.0,86615.0,0.3398311]
[1742875804419,0.11516001,86616.0,86615.0,0.35461521]
[1742875805533,0.23060981,86616.0,86615.0,0.00388]
[1742875805824,0.23060981,86616.0,86597.0,0.06889198]
[1742875805825,0.1154617,86607.0,86606.0,0.1101]
[1742875806037,0.47686171,86607.0,86606.0,0.1107]
[1742875806332,0.4769017,86607.0,86606.0,0.1107]
[1742875806825,0.4769017,86607.0,86606.0,0.0006]
[1742875807028,0.8205017,86607.0,86606.0,0.0056]
[1742875807331,0.1154751,86597.0,86596.0,0.41536869]
[1742875807521,0.1154791,86594.0,86590.0,0.01142605]
[1742875807726,0.11643911,86594.0,86592.0,0.1154811]
[1742875808231,0.11643911,86594.0,86590.0,0.01150605]
[1742875808432,0.34303911,86594.0,86590.0,0.01150605]
[1742875809329,0.34303911,86594.0,86593.0,0.00517324]
[1742875809727,0.34303911,86594.0,86593.0,0.00917324]
[1742875809921,0.34303911,86594.0,86593.0,0.00977324]
[1742875811422,0.34303911,86594.0,86593.0,0.00917324]
[1742875812034,0.35175889,86594.0,86593.0,0.00917324]
[1742875812226,0.35175889,86594.0,86593.0,0.00977324]
[1742875812922,0.35175889,86594.0,86593.0,0.00917324]
[1742875816434,0.22756001,86594.0,86593.0,0.12465364]
[1742875816633,0.22756001,86594.0,86593.0,0.12525364]
[1742875817121,0.34303911,86594.0,86593.0,0.12525364]
[1742875818232,0.23073911,86594.0,86593.0,0.12525364]
[1742875818431,0.11526001,86594.0,86593.0,0.12525364]
[1742875819637,0.23073911,86594.0,86593.0,0.12525364]
[1742875819837,0.34063911,86594.0,86593.0,0.12525364]
[1742875825135,0.23073911,86594.0,86593.0,0.12525364]
[1742875825736,0.11643911,86594.0,86593.0,0.12525364]
[1742875826038,0.00096001,86594.0,86593.0,0.12525364]
[1742875826339,0.2233715,86600.0,86599.0,0.1154724]
[1742875826546,0.2243715,86600.0,86599.0,0.1154724]
[1742875826736,0.5851715,86600.0,86599.0,0.0006]
[1742875826941,0.5851715,86600.0,86599.0,0.1069]
[1742875827540,0.7011715,86600.0,86599.0,0.1069]
[1742875827737,0.7011715,86600.0,86599.0,0.1109]
[1742875828645,0.7011715,86600.0,86599.0,0.1139]
[1742875833752,0.7011715,86600.0,86599.0,0.2293724]
[1742875833936,0.7011715,86600.0,86599.0,0.3393724]
[1742875834339,0.7011715,86600.0,86599.0,0.2239]
[1742875840436,0.7011715,86600.0,86599.0,0.0076]
[1742875840637,0.1154791,86594.0,86593.0,0.00017324]
[1742875840843,0.1164791,86594.0,86593.0,0.00017324]
[1742875841146,0.1164791,86594.0,86593.0,0.00025324]
[1742875841335,0.1164791,86594.0,86593.0,0.00085324]
[1742875841540,0.3417791,86594.0,86593.0,0.00077324]
[1742875842150,0.3417791,86594.0,86593.0,0.00477324]
[1742875842451,0.3417791,86594.0,86593.0,0.00977324]
[1742875844339,0.3417791,86594.0,86593.0,1e-08]
[1742875844545,0.0577447,86587.0,86584.0,0.1132]
[1742875844747,0.4762911,86585.0,86584.0,0.1138]
[1742875845056,0.4774511,86585.0,86584.0,0.12797858]
[1742875845356,0.7008511,86585.0,86584.0,0.12797858]
[1742875845550,0.7008511,86585.0,86584.0,0.0006]
[1742875845746,0.1154924,86584.0,86583.0,0.1157]
[1742875845948,0.1166524,86584.0,86583.0,0.1157]
[1742875846148,0.3400524,86584.0,86583.0,0.12992194]
[1742875846449,0.3400524,86584.0,86583.0,0.13052194]
[1742875846849,0.3400524,86584.0,86583.0,0.12992194]
[1742875847049,0.3400524,86584.0,86583.0,0.13056194]
[1742875848058,0.3400524,86584.0,86583.0,0.12992194]
[1742875848355,0.3420524,86584.0,86583.0,0.13552194]
[1742875848860,0.3420524,86584.0,86583.0,0.01982194]
[1742875857655,0.3420524,86584.0,86583.0,0.24222194]
[1742875863762,0.7028524,86584.0,86583.0,0.24222194]
[1742875872558,0.7028524,86584.0,86583.0,0.13342194]
[1742875872761,0.0577469,86583.0,86567.0,0.20735255]
[1742875872961,0.0577469,86583.0,86571.0,0.00068]
[1742875872962,0.4763084,86572.0,86571.0,0.00068]
[1742875873265,0.4774684,86572.0,86571.0,0.00128]
[1742875873564,0.4774684,86572.0,86571.0,0.0006]
[1742875873765,0.36196,86572.0,86571.0,0.13013278]
[1742875873967,0.36196,86572.0,86571.0,0.1161098]
[1742875874164,0.3608,86590.0,86583.0,0.1154938]
[1742875874358,0.3608,86590.0,86583.0,0.1184938]
[1742875874359,0.3636,86584.0,86583.0,0.1184938]
[1742875874558,0.4780924,86584.0,86583.0,0.1184938]
[1742875874969,0.4770924,86584.0,86583.0,0.1160938]
[1742875875173,0.4770924,86584.0,86583.0,0.3485938]
[1742875875866,0.4770924,86584.0,86583.0,0.3495938]
[1742875876360,0.4770924,86584.0,86583.0,0.36376339]
[1742875876565,0.0008,86584.0,86583.0,0.36376339]
[1742875876761,0.1162924,86584.0,86583.0,0.36376339]
[1742875877575,0.0008,86584.0,86583.0,0.36576339]
[1742875877970,0.227687,86589.0,86588.0,0.1154871]
[1742875878167,0.113,86589.0,86588.0,0.1160871]
[1742875878779,0.113,86589.0,86588.0,0.3471871]
[1742875879279,0.0008,86589.0,86588.0,0.3471871]
[1742875880368,0.22785388,86593.0,86592.0,0.1154817]
[1742875880672,0.22865388,86593.0,86592.0,0.1160817]
[1742875881273,0.22865388,86593.0,86592.0,0.3484817]
[1742875881474,0.22865388,86593.0,86592.0,0.3494817]
[1742875881870,0.00097288,86593.0,86592.0,0.3494817]
[1742875882070,0.00017288,86593.0,86592.0,0.72525041]
[1742875882270,0.00017288,86593.0,86592.0,0.7102817]
[1742875882767,0.1155528,86599.0,86592.0,0.7102817]
[1742875882768,0.1185,86600.0,86599.0,0.1154724]
[1742875882970,0.0012,86600.0,86599.0,0.1161124]
[1742875883573,0.0012,86600.0,86599.0,0.3444124]
[1742875883875,0.0012,86600.0,86599.0,0.7052124]
[1742875884677,0.0022,86600.0,86599.0,0.7052124]
[1742875885767,0.0012,86600.0,86599.0,0.7052124]
[1742875885977,0.0012,86600.0,86599.0,0.7072124]
[1742875888181,8e-05,86609.0,86607.0,0.1154617]
[1742875888382,8e-05,86609.0,86608.0,0.9446404]
[1742875888578,0.1172,86620.0,86615.0,0.1154511]
[1742875888780,0.1172,86620.0,86615.0,0.1160511]
[1742875888781,0.00116001,86616.0,86615.0,0.1160511]
[1742875889465,0.00116001,86616.0,86615.0,0.3453511]
[1742875889671,0.00116001,86616.0,86615.0,0.35965509]
[1742875889874,0.00216001,86616.0,86615.0,0.35965509]
[1742875890273,0.00316001,86616.0,86615.0,0.35965509]
[1742875890983,0.11246001,86616.0,86615.0,0.35965509]
[1742875891182,0.00316001,86616.0,86615.0,0.35965509]
[1742875891569,0.00300001,86616.0,86615.0,0.35965509]
[1742875891774,0.00300001,86616.0,86615.0,0.36818985]
[1742875892776,0.0024,86616.0,86615.0,0.36818985]
[1742875893176,0.0024,86616.0,86615.0,0.37437875]
[1742875893377,0.00300001,86616.0,86615.0,0.48982985]
[1742875897680,0.00300001,86616.0,86615.0,0.01490399]
[1742875897880,0.0577255,86615.0,86610.0,0.1154568]
[1742875898183,0.3608,86612.0,86611.0,0.1154559]
[1742875898391,0.3608,86612.0,86611.0,0.2234559]
[1742875898575,0.36140001,86612.0,86611.0,0.2234559]
[1742875898779,0.36140001,86612.0,86611.0,0.3350559]
[1742875898979,0.36164001,86612.0,86611.0,0.3350559]
[1742875900375,0.36164001,86612.0,86611.0,0.34896613]
[1742875903593,0.36140001,86612.0,86611.0,0.34896613]
[1742875903996,0.36164001,86612.0,86611.0,0.34896613]
[1742875906091,0.00084001,86612.0,86611.0,0.34896613]
[1742875906592,0.0004,86616.0,86615.0,0.1154511]
[1742875906792,0.1171,86629.0,86628.0,0.1154338]
[1742875906985,0.36088,86630.0,86629.0,0.1154324]
[1742875907192,0.36168,86630.0,86629.0,0.1154324]
[1742875907403,0.36228001,86630.0,86629.0,0.1162324]
[1742875907600,0.36148001,86630.0,86629.0,0.1162324]
[1742875908503,0.00068001,86630.0,86629.0,0.1162324]
[1742875909596,0.11,86632.0,86631.0,0.1154298]
[1742875909798,0.11088,86632.0,86631.0,0.1162698]
[1742875910198,0.22338,86632.0,86631.0,0.1162698]
[1742875910900,0.22838,86632.0,86631.0,0.1162698]
[1742875911295,0.11878,86632.0,86631.0,0.1162698]
[1742875911891,0.12378,86632.0,86631.0,0.1162698]
[1742875912091,0.23318,86632.0,86631.0,0.1162698]
[1742875912903,0.12378,86632.0,86631.0,0.1162698]
[1742875918011,0.12378,86632.0,86631.0,0.2332698]
[1742875918202,0.24028,86632.0,86631.0,0.3435698]
[1742875923718,0.01128,86632.0,86631.0,0.3435698]
[1742875924509,0.0104,86632.0,86631.0,0.3435698]
[1742875928213,0.1258284,86632.0,86631.0,0.00084]
[1742875928414,0.1264684,86632.0,86631.0,0.00084]
[1742875928614,0.12604,86632.0,86631.0,0.1154298]
[1742875928814,0.23594,86632.0,86631.0,0.1162298]
[1742875929019,0.23594,86632.0,86631.0,0.3400298]
[1742875929907,0.12604,86632.0,86631.0,0.3400298]
[1742875933722,0.12604,86632.0,86631.0,0.35478868]
[1742875936010,0.12604,86632.0,86631.0,0.3400298]
[1742875938313,0.0104,86632.0,86631.0,0.3400298]
[1742875939820,8e-05,86637.0,86634.0,0.1154258]
[1742875940021,0.00088,86637.0,86636.0,0.1154231]
[1742875940225,8e-05,86637.0,86636.0,0.3421231]
[1742875940725,0.2242,86640.0,86639.0,0.1154191]
[1742875940920,0.22512,86640.0,86639.0,0.2376991]
[1742875941127,0.22512,86640.0,86639.0,0.4585991]
[1742875942729,0.23612,86640.0,86639.0,0.4595991]
[1742875943632,0.12452,86640.0,86639.0,0.4595991]
[1742875943818,0.12368,86640.0,86639.0,0.47340039]
[1742875944020,0.12448,86640.0,86639.0,0.47340039]
[1742875944514,0.1244,86640.0,86639.0,0.47340039]
[1742875944725,0.1244,86640.0,86639.0,0.47240039]
[1742875945130,0.0118,86640.0,86639.0,0.47240039]
[1742875945320,0.011,86640.0,86639.0,0.47240039]
[1742875945521,0.0048,86640.0,86639.0,0.47240039]
[1742875945722,0.0088,86640.0,86639.0,0.47240039]
[1742875946024,0.0048,86640.0,86639.0,0.47240039]
[1742875946231,0.0088,86640.0,86639.0,0.47240039]
[1742875946427,0.0078,86640.0,86639.0,0.47240039]
[1742875946624,0.0038,86640.0,86639.0,0.47240039]
[1742875946825,0.0068,86640.0,86639.0,0.47240039]
[1742875947228,0.12,86640.0,86639.0,0.47240039]
[1742875948834,0.12,86640.0,86639.0,0.23554129]
[1742875949023,0.5962178,86640.0,86639.0,0.12584129]
[1742875949638,0.4808,86640.0,86639.0,0.24126039]
[1742875950424,0.4808,86640.0,86639.0,0.36106039]
[1742875950727,0.3676,86640.0,86639.0,0.36106039]
[1742875950933,0.0068,86640.0,86639.0,0.36106039]
[1742875951134,0.1217,86640.0,86639.0,0.36106039]
[1742875951835,0.0068,86640.0,86639.0,0.36106039]
[1742875952035,0.006,86640.0,86639.0,0.36106039]
[1742875952230,0.0068,86640.0,86639.0,0.36106039]
[1742875952828,0.006,86640.0,86639.0,0.36106039]
[1742875953135,0.00660001,86640.0,86639.0,0.36106039]
[1742875954426,0.006,86640.0,86639.0,0.36106039]
[1742875954626,0.0068,86640.0,86639.0,0.36106039]
[1742875956335,0.1182,86640.0,86639.0,0.36106039]
[1742875956932,0.1182,86640.0,86639.0,0.48242039]
[1742875957939,0.0068,86640.0,86639.0,0.48242039]
[1742875959225,0.2395,86640.0,86639.0,0.48242039]
[1742875960527,0.1233,86640.0,86639.0,0.48242039]
[1742875960731,0.1225,86640.0,86639.0,0.48242039]
[1742875960929,0.1233,86640.0,86639.0,0.48242039]
[1742875963034,0.1233,86640.0,86639.0,0.36106039]
[1742875963234,0.1233,86640.0,86639.0,0.37587036]
[1742875963833,0.1233,86640.0,86639.0,0.36106039]
[1742875973543,0.2387178,86640.0,86639.0,0.12584129]
[1742875973842,0.1233,86640.0,86639.0,0.24126039]
[1742875974547,0.2419,86640.0,86639.0,0.24126039]
[1742875979747,0.2419,86640.0,86639.0,0.35416039]
[1742875980155,0.0068,86640.0,86639.0,0.35416039]
[1742875980453,0.119,86644.0,86643.0,0.1154138]
[1742875980751,0.12004001,86644.0,86643.0,0.1164938]
[1742875981757,0.00504001,86644.0,86643.0,0.1164938]
[1742875982456,0.00704001,86644.0,86643.0,0.1164938]
[1742875983757,0.00704001,86644.0,86643.0,0.4772938]
[1742875984051,0.004,86644.0,86643.0,0.4772938]
[1742875984458,0.004,86644.0,86643.0,0.4872938]
[1742875984648,0.3608,86655.0,86643.0,0.4872938]
[1742875984649,0.111,86658.0,86657.0,0.1153951]
[1742875984955,0.111,86658.0,86657.0,0.2376751]
[1742875984956,0.11212001,86658.0,86657.0,0.2376751]
[1742875985151,0.00112001,86658.0,86657.0,0.2376751]
[1742875985356,8e-05,86658.0,86657.0,0.2376751]
[1742875985551,8e-05,86660.0,86659.0,0.1153925]
[1742875985752,0.00112001,86660.0,86659.0,0.1164325]
[1742875986647,0.00512001,86660.0,86659.0,0.12944473]
[1742875986848,8e-05,86663.0,86659.0,0.12944473]
[1742875986849,8e-05,86663.0,86662.0,0.1153885]
[1742875987052,8e-05,86663.0,86662.0,0.4772285]
[1742875987558,0.1103,86672.0,86671.0,0.1153765]
[1742875987759,0.11134001,86672.0,86671.0,0.1164165]
[1742875989153,0.23044001,86672.0,86671.0,0.1164165]
[1742875989555,0.11134001,86672.0,86671.0,0.1164165]
[1742875990956,0.00104001,86672.0,86671.0,0.1164165]
[1742875991159,0.00404001,86672.0,86671.0,0.1164165]
[1742875992559,0.12174001,86672.0,86671.0,0.2376165]
[1742875992759,0.23564001,86672.0,86671.0,0.2376165]
[1742875993773,0.12174001,86672.0,86671.0,0.2376165]
[1742875994159,0.00404001,86672.0,86671.0,0.2376165]